{"text_format":"3","workbook":"xlsx","n_sheets":2,"sheets":["Kaalulangetamise jälgimine","Arvutused"],"not_rendered":{"charts":1,"defined_names":7},"read":"whole","date_system":"1900"}

{"sheet":"Kaalulangetamise jälgimine","index":0,"n_rows":129,"n_cols":11,"rows_kept":129,"merged":[[0,5,0,9],[1,6,3,9]]}
[null,"SIHTKAAL","DIAGRAMMIVAADE",null,null," ANNELI KAALUKAOTUS"]
[{"$nulls":6},"JÄLGIMINE"]
[null,{"v":172,"d":"172.0"},"NÄDAL",{"$nulls":7}," "]
[]
[]
[{"$nulls":10}," "]
{"$rows_empty":18}
[null,"KUUPÄEV","KAAL"]
[null,"2012-11-30",{"v":176,"d":"176.0"}]
[null,"2012-12-07",{"v":176,"d":"176.0"}]
[null,"2012-12-14",177.6]
[null,"2012-12-21",176.5]
[null,"2012-12-28",176.1]
[null,"2013-01-04",{"v":174,"d":"174.0"}]
[null,"2013-01-11",{"v":173,"d":"173.0"}]
[null,"2013-01-18",{"v":172,"d":"172.0"}]
[null,"2013-01-25",{"v":172,"d":"172.0"}]
[null,"2013-02-01",{"v":173,"d":"173.0"}]
[null,"2013-02-08",{"v":174,"d":"174.0"}]
[null,"2013-02-15",{"v":175,"d":"175.0"}]
[null,"2013-02-22"]
[null,"2013-03-01"]
[null,"2013-03-08"]
[null,"2013-03-15"]
[null,"2013-03-22"]
[null,"2013-03-29"]
[null,"2013-04-05"]
[null,"2013-04-12"]
[null,"2013-04-19"]
[null,"2013-04-26"]
[null,"2013-05-03"]
[null,"2013-05-10"]
[null,"2013-05-17"]
[null,"2013-05-24"]
[null,"2013-05-31"]
[null,"2013-06-07"]
[null,"2013-06-14"]
[null,"2013-06-21"]
[null,"2013-06-28"]
[null,"2013-07-05"]
[null,"2013-07-12"]
[null,"2013-07-19"]
[null,"2013-07-26"]
[null,"2013-08-02"]
[null,"2013-08-09"]
[null,"2013-08-16"]
[null,"2013-08-23"]
[null,"2013-08-30"]
[null,"2013-09-06"]
[null,"2013-09-13"]
[null,"2013-09-20"]
[null,"2013-09-27"]
[null,"2013-10-04"]
[null,"2013-10-11"]
[null,"2013-10-18"]
[null,"2013-10-25"]
[null,"2013-11-01"]
[null,"2013-11-08"]
[null,"2013-11-15"]
[null,"2013-11-22"]
[null,"2013-11-29"]
[null,"2013-12-06"]
[null,"2013-12-13"]
[null,"2013-12-20"]
[null,"2013-12-27"]
[null,"2014-01-03"]
[null,"2014-01-10"]
[null,"2014-01-17"]
[null,"2014-01-24"]
[null,"2014-01-31"]
[null,"2014-02-07"]
[null,"2014-02-14"]
[null,"2014-02-21"]
[null,"2014-02-28"]
[null,"2014-03-07"]
[null,"2014-03-14"]
[null,"2014-03-21"]
[null,"2014-03-28"]
[null,"2014-04-04"]
[null,"2014-04-11"]
[null,"2014-04-18"]
[null,"2014-04-25"]
[null,"2014-05-02"]
[null,"2014-05-09"]
[null,"2014-05-16"]
[null,"2014-05-23"]
[null,"2014-05-30"]
[null,"2014-06-06"]
[null,"2014-06-13"]
[null,"2014-06-20"]
[null,"2014-06-27"]
[null,"2014-07-04"]
[null,"2014-07-11"]
[null,"2014-07-18"]
[null,"2014-07-25"]
[null,"2014-08-01"]
[null,"2014-08-08"]
[null,"2014-08-15"]
[null,"2014-08-22"]
[null,"2014-08-29"]
[null,"2014-09-05"]
[null,"2014-09-12"]
[null,"2014-09-19"]
[null,"2014-09-26"]
[null,"2014-10-03"]
[null,"2014-10-10"]
[null,"2014-10-17"]
[null,"2014-10-24"]
[null,"2014-10-31"]
[null,"2014-11-07"]
[null,"2014-11-14"]
[null,"2014-11-21"]

{"sheet":"Arvutused","index":1,"n_rows":108,"n_cols":17,"rows_kept":108,"hidden":true}
["*** Leht jääb peidetuks ***"]
[]
[{"$f":"COUNTIF(A5:A108,FALSE)","v":13},"Perioodid","Väärtused",{"$nulls":3},{"$f":"COUNTIF(H5:H28,\">\"&0)","v":4},"Perioodid",null,"Väärtused"]
[null,"Nädal",null,null,true,null,null,"Kuu","KUU LÕPP"]
[{"$f":"IF(('Kaalulangetamise jälgimine'!C26=0)*('Kaalulangetamise jälgimine'!C25=0),TRUE)","v":false},{"$f":"IF(A5,0,IF('Kaalulangetamise jälgimine'!B26=0,'Kaalulangetamise jälgimine'!B25+5,'Kaalulangetamise jälgimine'!B26))","v":"2012-11-30"},{"$f":"'Kaalulangetamise jälgimine'!C26","v":176},{"$f":"MIN(Diagrammi_perioodid)","v":"2012-11-30"},{"$f":"IF($E$4,Sihtkaal,NA())","v":172},null,null,{"$f":"DATE(YEAR(B5),MONTH(B5),1)","v":"2012-11-01"},{"$f":"EOMONTH(H5,0)","v":"2012-11-30"},{"$f":"IFERROR(AVERAGEIFS(Kaalutabel[KAAL],Kaalutabel[KUUPÄEV],\">=\"&H5,Kaalutabel[KUUPÄEV],\"<=\"&I5),NA())","v":176}]
[{"$f":"IF(('Kaalulangetamise jälgimine'!C27=0)*('Kaalulangetamise jälgimine'!C26=0),TRUE)","v":false},{"$f":"IF(A6,0,IF('Kaalulangetamise jälgimine'!B27=0,'Kaalulangetamise jälgimine'!B26+5,'Kaalulangetamise jälgimine'!B27))","v":"2012-12-07"},{"$f":"'Kaalulangetamise jälgimine'!C27","v":176},{"$f":"MAX(Diagrammi_perioodid)","v":"2013-02-22"},172,null,null,{"$f":"IF(I5+1>MAX($B:$B),NA(),I5+1)","v":"2012-12-01"},"2012-12-31",{"$f":"IFERROR(AVERAGEIFS(Kaalutabel[KAAL],Kaalutabel[KUUPÄEV],\">=\"&H6,Kaalutabel[KUUPÄEV],\"<=\"&I6),NA())","v":176.55}]
[{"$f":"IF(('Kaalulangetamise jälgimine'!C28=0)*('Kaalulangetamise jälgimine'!C27=0),TRUE)","v":false},{"$f":"IF(A7,0,IF('Kaalulangetamise jälgimine'!B28=0,'Kaalulangetamise jälgimine'!B27+5,'Kaalulangetamise jälgimine'!B28))","v":"2012-12-14"},{"$f":"'Kaalulangetamise jälgimine'!C28","v":177.6},{"$nulls":4},{"$f":"IF(I6+1>MAX($B:$B),NA(),I6+1)","v":"2013-01-01"},"2013-01-31",{"$f":"IFERROR(AVERAGEIFS(Kaalutabel[KAAL],Kaalutabel[KUUPÄEV],\">=\"&H7,Kaalutabel[KUUPÄEV],\"<=\"&I7),NA())","v":172.75}]
[{"$f":"IF(('Kaalulangetamise jälgimine'!C29=0)*('Kaalulangetamise jälgimine'!C28=0),TRUE)","v":false},{"$f":"IF(A8,0,IF('Kaalulangetamise jälgimine'!B29=0,'Kaalulangetamise jälgimine'!B28+5,'Kaalulangetamise jälgimine'!B29))","v":"2012-12-21"},{"$f":"'Kaalulangetamise jälgimine'!C29","v":176.5},{"$nulls":4},"2013-02-01","2013-02-28",{"$f":"IFERROR(AVERAGEIFS(Kaalutabel[KAAL],Kaalutabel[KUUPÄEV],\">=\"&H8,Kaalutabel[KUUPÄEV],\"<=\"&I8),NA())","v":174}]
[{"$f":"IF(('Kaalulangetamise jälgimine'!C30=0)*('Kaalulangetamise jälgimine'!C29=0),TRUE)","v":false},{"$f":"IF(A9,0,IF('Kaalulangetamise jälgimine'!B30=0,'Kaalulangetamise jälgimine'!B29+5,'Kaalulangetamise jälgimine'!B30))","v":"2012-12-28"},{"$f":"'Kaalulangetamise jälgimine'!C30","v":176.1},{"$nulls":4},{"$error":"#N/A"},{"$error":"#N/A"},{"$f":"IFERROR(AVERAGEIFS(Kaalutabel[KAAL],Kaalutabel[KUUPÄEV],\">=\"&H9,Kaalutabel[KUUPÄEV],\"<=\"&I9),NA())","v":{"$error":"#N/A"}}]
[{"$f":"IF(('Kaalulangetamise jälgimine'!C31=0)*('Kaalulangetamise jälgimine'!C30=0),TRUE)","v":false},{"$f":"IF(A10,0,IF('Kaalulangetamise jälgimine'!B31=0,'Kaalulangetamise jälgimine'!B30+5,'Kaalulangetamise jälgimine'!B31))","v":"2013-01-04"},{"$f":"'Kaalulangetamise jälgimine'!C31","v":174},{"$nulls":4},{"$error":"#N/A"},{"$error":"#N/A"},{"$f":"IFERROR(AVERAGEIFS(Kaalutabel[KAAL],Kaalutabel[KUUPÄEV],\">=\"&H10,Kaalutabel[KUUPÄEV],\"<=\"&I10),NA())","v":{"$error":"#N/A"}}]
[{"$f":"IF(('Kaalulangetamise jälgimine'!C32=0)*('Kaalulangetamise jälgimine'!C31=0),TRUE)","v":false},{"$f":"IF(A11,0,IF('Kaalulangetamise jälgimine'!B32=0,'Kaalulangetamise jälgimine'!B31+5,'Kaalulangetamise jälgimine'!B32))","v":"2013-01-11"},{"$f":"'Kaalulangetamise jälgimine'!C32","v":173},{"$nulls":4},{"$error":"#N/A"},{"$error":"#N/A"},{"$f":"IFERROR(AVERAGEIFS(Kaalutabel[KAAL],Kaalutabel[KUUPÄEV],\">=\"&H11,Kaalutabel[KUUPÄEV],\"<=\"&I11),NA())","v":{"$error":"#N/A"}},{"$nulls":6},{"$f":"MAX($B:$B)","v":"2013-02-22"}]
[{"$f":"IF(('Kaalulangetamise jälgimine'!C33=0)*('Kaalulangetamise jälgimine'!C32=0),TRUE)","v":false},{"$f":"IF(A12,0,IF('Kaalulangetamise jälgimine'!B33=0,'Kaalulangetamise jälgimine'!B32+5,'Kaalulangetamise jälgimine'!B33))","v":"2013-01-18"},{"$f":"'Kaalulangetamise jälgimine'!C33","v":172},{"$nulls":4},{"$error":"#N/A"},{"$error":"#N/A"},{"$f":"IFERROR(AVERAGEIFS(Kaalutabel[KAAL],Kaalutabel[KUUPÄEV],\">=\"&H12,Kaalutabel[KUUPÄEV],\"<=\"&I12),NA())","v":{"$error":"#N/A"}}]
[{"$f":"IF(('Kaalulangetamise jälgimine'!C34=0)*('Kaalulangetamise jälgimine'!C33=0),TRUE)","v":false},{"$f":"IF(A13,0,IF('Kaalulangetamise jälgimine'!B34=0,'Kaalulangetamise jälgimine'!B33+5,'Kaalulangetamise jälgimine'!B34))","v":"2013-01-25"},{"$f":"'Kaalulangetamise jälgimine'!C34","v":172},{"$nulls":4},{"$error":"#N/A"},{"$error":"#N/A"},{"$f":"IFERROR(AVERAGEIFS(Kaalutabel[KAAL],Kaalutabel[KUUPÄEV],\">=\"&H13,Kaalutabel[KUUPÄEV],\"<=\"&I13),NA())","v":{"$error":"#N/A"}}]
[{"$f":"IF(('Kaalulangetamise jälgimine'!C35=0)*('Kaalulangetamise jälgimine'!C34=0),TRUE)","v":false},{"$f":"IF(A14,0,IF('Kaalulangetamise jälgimine'!B35=0,'Kaalulangetamise jälgimine'!B34+5,'Kaalulangetamise jälgimine'!B35))","v":"2013-02-01"},{"$f":"'Kaalulangetamise jälgimine'!C35","v":173},{"$nulls":4},{"$error":"#N/A"},{"$error":"#N/A"},{"$f":"IFERROR(AVERAGEIFS(Kaalutabel[KAAL],Kaalutabel[KUUPÄEV],\">=\"&H14,Kaalutabel[KUUPÄEV],\"<=\"&I14),NA())","v":{"$error":"#N/A"}}]
[{"$f":"IF(('Kaalulangetamise jälgimine'!C36=0)*('Kaalulangetamise jälgimine'!C35=0),TRUE)","v":false},{"$f":"IF(A15,0,IF('Kaalulangetamise jälgimine'!B36=0,'Kaalulangetamise jälgimine'!B35+5,'Kaalulangetamise jälgimine'!B36))","v":"2013-02-08"},{"$f":"'Kaalulangetamise jälgimine'!C36","v":174},{"$nulls":4},{"$error":"#N/A"},{"$error":"#N/A"},{"$f":"IFERROR(AVERAGEIFS(Kaalutabel[KAAL],Kaalutabel[KUUPÄEV],\">=\"&H15,Kaalutabel[KUUPÄEV],\"<=\"&I15),NA())","v":{"$error":"#N/A"}}]
[{"$f":"IF(('Kaalulangetamise jälgimine'!C37=0)*('Kaalulangetamise jälgimine'!C36=0),TRUE)","v":false},{"$f":"IF(A16,0,IF('Kaalulangetamise jälgimine'!B37=0,'Kaalulangetamise jälgimine'!B36+5,'Kaalulangetamise jälgimine'!B37))","v":"2013-02-15"},{"$f":"'Kaalulangetamise jälgimine'!C37","v":175},{"$nulls":4},{"$error":"#N/A"},{"$error":"#N/A"},{"$f":"IFERROR(AVERAGEIFS(Kaalutabel[KAAL],Kaalutabel[KUUPÄEV],\">=\"&H16,Kaalutabel[KUUPÄEV],\"<=\"&I16),NA())","v":{"$error":"#N/A"}}]
[{"$f":"IF(('Kaalulangetamise jälgimine'!C38=0)*('Kaalulangetamise jälgimine'!C37=0),TRUE)","v":false},{"$f":"IF(A17,0,IF('Kaalulangetamise jälgimine'!B38=0,'Kaalulangetamise jälgimine'!B37+5,'Kaalulangetamise jälgimine'!B38))","v":"2013-02-22"},{"$f":"'Kaalulangetamise jälgimine'!C38","v":0},{"$nulls":4},{"$error":"#N/A"},{"$error":"#N/A"},{"$f":"IFERROR(AVERAGEIFS(Kaalutabel[KAAL],Kaalutabel[KUUPÄEV],\">=\"&H17,Kaalutabel[KUUPÄEV],\"<=\"&I17),NA())","v":{"$error":"#N/A"}}]
[{"$f":"IF(('Kaalulangetamise jälgimine'!C39=0)*('Kaalulangetamise jälgimine'!C38=0),TRUE)","v":true},{"$f":"IF(A18,0,IF('Kaalulangetamise jälgimine'!B39=0,'Kaalulangetamise jälgimine'!B38+5,'Kaalulangetamise jälgimine'!B39))","v":"00:00:00"},{"$f":"'Kaalulangetamise jälgimine'!C39","v":0},{"$nulls":4},{"$error":"#N/A"},{"$error":"#N/A"},{"$f":"IFERROR(AVERAGEIFS(Kaalutabel[KAAL],Kaalutabel[KUUPÄEV],\">=\"&H18,Kaalutabel[KUUPÄEV],\"<=\"&I18),NA())","v":{"$error":"#N/A"}}]
[{"$f":"IF(('Kaalulangetamise jälgimine'!C40=0)*('Kaalulangetamise jälgimine'!C39=0),TRUE)","v":true},{"$f":"IF(A19,0,IF('Kaalulangetamise jälgimine'!B40=0,'Kaalulangetamise jälgimine'!B39+5,'Kaalulangetamise jälgimine'!B40))","v":"00:00:00"},{"$f":"'Kaalulangetamise jälgimine'!C40","v":0},{"$nulls":4},{"$error":"#N/A"},{"$error":"#N/A"},{"$f":"IFERROR(AVERAGEIFS(Kaalutabel[KAAL],Kaalutabel[KUUPÄEV],\">=\"&H19,Kaalutabel[KUUPÄEV],\"<=\"&I19),NA())","v":{"$error":"#N/A"}}]
[{"$f":"IF(('Kaalulangetamise jälgimine'!C41=0)*('Kaalulangetamise jälgimine'!C40=0),TRUE)","v":true},{"$f":"IF(A20,0,IF('Kaalulangetamise jälgimine'!B41=0,'Kaalulangetamise jälgimine'!B40+5,'Kaalulangetamise jälgimine'!B41))","v":"00:00:00"},{"$f":"'Kaalulangetamise jälgimine'!C41","v":0},{"$nulls":4},{"$error":"#N/A"},{"$error":"#N/A"},{"$f":"IFERROR(AVERAGEIFS(Kaalutabel[KAAL],Kaalutabel[KUUPÄEV],\">=\"&H20,Kaalutabel[KUUPÄEV],\"<=\"&I20),NA())","v":{"$error":"#N/A"}}]
[{"$f":"IF(('Kaalulangetamise jälgimine'!C42=0)*('Kaalulangetamise jälgimine'!C41=0),TRUE)","v":true},{"$f":"IF(A21,0,IF('Kaalulangetamise jälgimine'!B42=0,'Kaalulangetamise jälgimine'!B41+5,'Kaalulangetamise jälgimine'!B42))","v":"00:00:00"},{"$f":"'Kaalulangetamise jälgimine'!C42","v":0},{"$nulls":4},{"$error":"#N/A"},{"$error":"#N/A"},{"$f":"IFERROR(AVERAGEIFS(Kaalutabel[KAAL],Kaalutabel[KUUPÄEV],\">=\"&H21,Kaalutabel[KUUPÄEV],\"<=\"&I21),NA())","v":{"$error":"#N/A"}}]
[{"$f":"IF(('Kaalulangetamise jälgimine'!C43=0)*('Kaalulangetamise jälgimine'!C42=0),TRUE)","v":true},{"$f":"IF(A22,0,IF('Kaalulangetamise jälgimine'!B43=0,'Kaalulangetamise jälgimine'!B42+5,'Kaalulangetamise jälgimine'!B43))","v":"00:00:00"},{"$f":"'Kaalulangetamise jälgimine'!C43","v":0},{"$nulls":4},{"$error":"#N/A"},{"$error":"#N/A"},{"$f":"IFERROR(AVERAGEIFS(Kaalutabel[KAAL],Kaalutabel[KUUPÄEV],\">=\"&H22,Kaalutabel[KUUPÄEV],\"<=\"&I22),NA())","v":{"$error":"#N/A"}}]
[{"$f":"IF(('Kaalulangetamise jälgimine'!C44=0)*('Kaalulangetamise jälgimine'!C43=0),TRUE)","v":true},{"$f":"IF(A23,0,IF('Kaalulangetamise jälgimine'!B44=0,'Kaalulangetamise jälgimine'!B43+5,'Kaalulangetamise jälgimine'!B44))","v":"00:00:00"},{"$f":"'Kaalulangetamise jälgimine'!C44","v":0},{"$nulls":4},{"$error":"#N/A"},{"$error":"#N/A"},{"$f":"IFERROR(AVERAGEIFS(Kaalutabel[KAAL],Kaalutabel[KUUPÄEV],\">=\"&H23,Kaalutabel[KUUPÄEV],\"<=\"&I23),NA())","v":{"$error":"#N/A"}}]
[{"$f":"IF(('Kaalulangetamise jälgimine'!C45=0)*('Kaalulangetamise jälgimine'!C44=0),TRUE)","v":true},{"$f":"IF(A24,0,IF('Kaalulangetamise jälgimine'!B45=0,'Kaalulangetamise jälgimine'!B44+5,'Kaalulangetamise jälgimine'!B45))","v":"00:00:00"},{"$f":"'Kaalulangetamise jälgimine'!C45","v":0},{"$nulls":4},{"$error":"#N/A"},{"$error":"#N/A"},{"$f":"IFERROR(AVERAGEIFS(Kaalutabel[KAAL],Kaalutabel[KUUPÄEV],\">=\"&H24,Kaalutabel[KUUPÄEV],\"<=\"&I24),NA())","v":{"$error":"#N/A"}}]
[{"$f":"IF(('Kaalulangetamise jälgimine'!C46=0)*('Kaalulangetamise jälgimine'!C45=0),TRUE)","v":true},{"$f":"IF(A25,0,IF('Kaalulangetamise jälgimine'!B46=0,'Kaalulangetamise jälgimine'!B45+5,'Kaalulangetamise jälgimine'!B46))","v":"00:00:00"},{"$f":"'Kaalulangetamise jälgimine'!C46","v":0},{"$nulls":4},{"$error":"#N/A"},{"$error":"#N/A"},{"$f":"IFERROR(AVERAGEIFS(Kaalutabel[KAAL],Kaalutabel[KUUPÄEV],\">=\"&H25,Kaalutabel[KUUPÄEV],\"<=\"&I25),NA())","v":{"$error":"#N/A"}}]
[{"$f":"IF(('Kaalulangetamise jälgimine'!C47=0)*('Kaalulangetamise jälgimine'!C46=0),TRUE)","v":true},{"$f":"IF(A26,0,IF('Kaalulangetamise jälgimine'!B47=0,'Kaalulangetamise jälgimine'!B46+5,'Kaalulangetamise jälgimine'!B47))","v":"00:00:00"},{"$f":"'Kaalulangetamise jälgimine'!C47","v":0},{"$nulls":4},{"$error":"#N/A"},{"$error":"#N/A"},{"$f":"IFERROR(AVERAGEIFS(Kaalutabel[KAAL],Kaalutabel[KUUPÄEV],\">=\"&H26,Kaalutabel[KUUPÄEV],\"<=\"&I26),NA())","v":{"$error":"#N/A"}}]
[{"$f":"IF(('Kaalulangetamise jälgimine'!C48=0)*('Kaalulangetamise jälgimine'!C47=0),TRUE)","v":true},{"$f":"IF(A27,0,IF('Kaalulangetamise jälgimine'!B48=0,'Kaalulangetamise jälgimine'!B47+5,'Kaalulangetamise jälgimine'!B48))","v":"00:00:00"},{"$f":"'Kaalulangetamise jälgimine'!C48","v":0},{"$nulls":4},{"$error":"#N/A"},{"$error":"#N/A"},{"$f":"IFERROR(AVERAGEIFS(Kaalutabel[KAAL],Kaalutabel[KUUPÄEV],\">=\"&H27,Kaalutabel[KUUPÄEV],\"<=\"&I27),NA())","v":{"$error":"#N/A"}}]
[{"$f":"IF(('Kaalulangetamise jälgimine'!C49=0)*('Kaalulangetamise jälgimine'!C48=0),TRUE)","v":true},{"$f":"IF(A28,0,IF('Kaalulangetamise jälgimine'!B49=0,'Kaalulangetamise jälgimine'!B48+5,'Kaalulangetamise jälgimine'!B49))","v":"00:00:00"},{"$f":"'Kaalulangetamise jälgimine'!C49","v":0},{"$nulls":4},{"$error":"#N/A"},{"$error":"#N/A"},{"$f":"IFERROR(AVERAGEIFS(Kaalutabel[KAAL],Kaalutabel[KUUPÄEV],\">=\"&H28,Kaalutabel[KUUPÄEV],\"<=\"&I28),NA())","v":{"$error":"#N/A"}}]
[{"$f":"IF(('Kaalulangetamise jälgimine'!C50=0)*('Kaalulangetamise jälgimine'!C49=0),TRUE)","v":true},{"$f":"IF(A29,0,IF('Kaalulangetamise jälgimine'!B50=0,'Kaalulangetamise jälgimine'!B49+5,'Kaalulangetamise jälgimine'!B50))","v":"00:00:00"},{"$f":"'Kaalulangetamise jälgimine'!C50","v":0}]
[{"$f":"IF(('Kaalulangetamise jälgimine'!C51=0)*('Kaalulangetamise jälgimine'!C50=0),TRUE)","v":true},{"$f":"IF(A30,0,IF('Kaalulangetamise jälgimine'!B51=0,'Kaalulangetamise jälgimine'!B50+5,'Kaalulangetamise jälgimine'!B51))","v":"00:00:00"},{"$f":"'Kaalulangetamise jälgimine'!C51","v":0}]
[{"$f":"IF(('Kaalulangetamise jälgimine'!C52=0)*('Kaalulangetamise jälgimine'!C51=0),TRUE)","v":true},{"$f":"IF(A31,0,IF('Kaalulangetamise jälgimine'!B52=0,'Kaalulangetamise jälgimine'!B51+5,'Kaalulangetamise jälgimine'!B52))","v":"00:00:00"},{"$f":"'Kaalulangetamise jälgimine'!C52","v":0}]
[{"$f":"IF(('Kaalulangetamise jälgimine'!C53=0)*('Kaalulangetamise jälgimine'!C52=0),TRUE)","v":true},{"$f":"IF(A32,0,IF('Kaalulangetamise jälgimine'!B53=0,'Kaalulangetamise jälgimine'!B52+5,'Kaalulangetamise jälgimine'!B53))","v":"00:00:00"},{"$f":"'Kaalulangetamise jälgimine'!C53","v":0}]
[{"$f":"IF(('Kaalulangetamise jälgimine'!C54=0)*('Kaalulangetamise jälgimine'!C53=0),TRUE)","v":true},{"$f":"IF(A33,0,IF('Kaalulangetamise jälgimine'!B54=0,'Kaalulangetamise jälgimine'!B53+5,'Kaalulangetamise jälgimine'!B54))","v":"00:00:00"},{"$f":"'Kaalulangetamise jälgimine'!C54","v":0}]
[{"$f":"IF(('Kaalulangetamise jälgimine'!C55=0)*('Kaalulangetamise jälgimine'!C54=0),TRUE)","v":true},{"$f":"IF(A34,0,IF('Kaalulangetamise jälgimine'!B55=0,'Kaalulangetamise jälgimine'!B54+5,'Kaalulangetamise jälgimine'!B55))","v":"00:00:00"},{"$f":"'Kaalulangetamise jälgimine'!C55","v":0}]
[{"$f":"IF(('Kaalulangetamise jälgimine'!C56=0)*('Kaalulangetamise jälgimine'!C55=0),TRUE)","v":true},{"$f":"IF(A35,0,IF('Kaalulangetamise jälgimine'!B56=0,'Kaalulangetamise jälgimine'!B55+5,'Kaalulangetamise jälgimine'!B56))","v":"00:00:00"},{"$f":"'Kaalulangetamise jälgimine'!C56","v":0}]
[{"$f":"IF(('Kaalulangetamise jälgimine'!C57=0)*('Kaalulangetamise jälgimine'!C56=0),TRUE)","v":true},{"$f":"IF(A36,0,IF('Kaalulangetamise jälgimine'!B57=0,'Kaalulangetamise jälgimine'!B56+5,'Kaalulangetamise jälgimine'!B57))","v":"00:00:00"},{"$f":"'Kaalulangetamise jälgimine'!C57","v":0}]
[{"$f":"IF(('Kaalulangetamise jälgimine'!C58=0)*('Kaalulangetamise jälgimine'!C57=0),TRUE)","v":true},{"$f":"IF(A37,0,IF('Kaalulangetamise jälgimine'!B58=0,'Kaalulangetamise jälgimine'!B57+5,'Kaalulangetamise jälgimine'!B58))","v":"00:00:00"},{"$f":"'Kaalulangetamise jälgimine'!C58","v":0}]
[{"$f":"IF(('Kaalulangetamise jälgimine'!C59=0)*('Kaalulangetamise jälgimine'!C58=0),TRUE)","v":true},{"$f":"IF(A38,0,IF('Kaalulangetamise jälgimine'!B59=0,'Kaalulangetamise jälgimine'!B58+5,'Kaalulangetamise jälgimine'!B59))","v":"00:00:00"},{"$f":"'Kaalulangetamise jälgimine'!C59","v":0}]
[{"$f":"IF(('Kaalulangetamise jälgimine'!C60=0)*('Kaalulangetamise jälgimine'!C59=0),TRUE)","v":true},{"$f":"IF(A39,0,IF('Kaalulangetamise jälgimine'!B60=0,'Kaalulangetamise jälgimine'!B59+5,'Kaalulangetamise jälgimine'!B60))","v":"00:00:00"},{"$f":"'Kaalulangetamise jälgimine'!C60","v":0}]
[{"$f":"IF(('Kaalulangetamise jälgimine'!C61=0)*('Kaalulangetamise jälgimine'!C60=0),TRUE)","v":true},{"$f":"IF(A40,0,IF('Kaalulangetamise jälgimine'!B61=0,'Kaalulangetamise jälgimine'!B60+5,'Kaalulangetamise jälgimine'!B61))","v":"00:00:00"},{"$f":"'Kaalulangetamise jälgimine'!C61","v":0}]
[{"$f":"IF(('Kaalulangetamise jälgimine'!C62=0)*('Kaalulangetamise jälgimine'!C61=0),TRUE)","v":true},{"$f":"IF(A41,0,IF('Kaalulangetamise jälgimine'!B62=0,'Kaalulangetamise jälgimine'!B61+5,'Kaalulangetamise jälgimine'!B62))","v":"00:00:00"},{"$f":"'Kaalulangetamise jälgimine'!C62","v":0}]
[{"$f":"IF(('Kaalulangetamise jälgimine'!C63=0)*('Kaalulangetamise jälgimine'!C62=0),TRUE)","v":true},{"$f":"IF(A42,0,IF('Kaalulangetamise jälgimine'!B63=0,'Kaalulangetamise jälgimine'!B62+5,'Kaalulangetamise jälgimine'!B63))","v":"00:00:00"},{"$f":"'Kaalulangetamise jälgimine'!C63","v":0}]
[{"$f":"IF(('Kaalulangetamise jälgimine'!C64=0)*('Kaalulangetamise jälgimine'!C63=0),TRUE)","v":true},{"$f":"IF(A43,0,IF('Kaalulangetamise jälgimine'!B64=0,'Kaalulangetamise jälgimine'!B63+5,'Kaalulangetamise jälgimine'!B64))","v":"00:00:00"},{"$f":"'Kaalulangetamise jälgimine'!C64","v":0}]
[{"$f":"IF(('Kaalulangetamise jälgimine'!C65=0)*('Kaalulangetamise jälgimine'!C64=0),TRUE)","v":true},{"$f":"IF(A44,0,IF('Kaalulangetamise jälgimine'!B65=0,'Kaalulangetamise jälgimine'!B64+5,'Kaalulangetamise jälgimine'!B65))","v":"00:00:00"},{"$f":"'Kaalulangetamise jälgimine'!C65","v":0}]
[{"$f":"IF(('Kaalulangetamise jälgimine'!C66=0)*('Kaalulangetamise jälgimine'!C65=0),TRUE)","v":true},{"$f":"IF(A45,0,IF('Kaalulangetamise jälgimine'!B66=0,'Kaalulangetamise jälgimine'!B65+5,'Kaalulangetamise jälgimine'!B66))","v":"00:00:00"},{"$f":"'Kaalulangetamise jälgimine'!C66","v":0}]
[{"$f":"IF(('Kaalulangetamise jälgimine'!C67=0)*('Kaalulangetamise jälgimine'!C66=0),TRUE)","v":true},{"$f":"IF(A46,0,IF('Kaalulangetamise jälgimine'!B67=0,'Kaalulangetamise jälgimine'!B66+5,'Kaalulangetamise jälgimine'!B67))","v":"00:00:00"},{"$f":"'Kaalulangetamise jälgimine'!C67","v":0}]
[{"$f":"IF(('Kaalulangetamise jälgimine'!C68=0)*('Kaalulangetamise jälgimine'!C67=0),TRUE)","v":true},{"$f":"IF(A47,0,IF('Kaalulangetamise jälgimine'!B68=0,'Kaalulangetamise jälgimine'!B67+5,'Kaalulangetamise jälgimine'!B68))","v":"00:00:00"},{"$f":"'Kaalulangetamise jälgimine'!C68","v":0}]
[{"$f":"IF(('Kaalulangetamise jälgimine'!C69=0)*('Kaalulangetamise jälgimine'!C68=0),TRUE)","v":true},{"$f":"IF(A48,0,IF('Kaalulangetamise jälgimine'!B69=0,'Kaalulangetamise jälgimine'!B68+5,'Kaalulangetamise jälgimine'!B69))","v":"00:00:00"},{"$f":"'Kaalulangetamise jälgimine'!C69","v":0}]
[{"$f":"IF(('Kaalulangetamise jälgimine'!C70=0)*('Kaalulangetamise jälgimine'!C69=0),TRUE)","v":true},{"$f":"IF(A49,0,IF('Kaalulangetamise jälgimine'!B70=0,'Kaalulangetamise jälgimine'!B69+5,'Kaalulangetamise jälgimine'!B70))","v":"00:00:00"},{"$f":"'Kaalulangetamise jälgimine'!C70","v":0}]
[{"$f":"IF(('Kaalulangetamise jälgimine'!C71=0)*('Kaalulangetamise jälgimine'!C70=0),TRUE)","v":true},{"$f":"IF(A50,0,IF('Kaalulangetamise jälgimine'!B71=0,'Kaalulangetamise jälgimine'!B70+5,'Kaalulangetamise jälgimine'!B71))","v":"00:00:00"},{"$f":"'Kaalulangetamise jälgimine'!C71","v":0}]
[{"$f":"IF(('Kaalulangetamise jälgimine'!C72=0)*('Kaalulangetamise jälgimine'!C71=0),TRUE)","v":true},{"$f":"IF(A51,0,IF('Kaalulangetamise jälgimine'!B72=0,'Kaalulangetamise jälgimine'!B71+5,'Kaalulangetamise jälgimine'!B72))","v":"00:00:00"},{"$f":"'Kaalulangetamise jälgimine'!C72","v":0}]
[{"$f":"IF(('Kaalulangetamise jälgimine'!C73=0)*('Kaalulangetamise jälgimine'!C72=0),TRUE)","v":true},{"$f":"IF(A52,0,IF('Kaalulangetamise jälgimine'!B73=0,'Kaalulangetamise jälgimine'!B72+5,'Kaalulangetamise jälgimine'!B73))","v":"00:00:00"},{"$f":"'Kaalulangetamise jälgimine'!C73","v":0}]
[{"$f":"IF(('Kaalulangetamise jälgimine'!C74=0)*('Kaalulangetamise jälgimine'!C73=0),TRUE)","v":true},{"$f":"IF(A53,0,IF('Kaalulangetamise jälgimine'!B74=0,'Kaalulangetamise jälgimine'!B73+5,'Kaalulangetamise jälgimine'!B74))","v":"00:00:00"},{"$f":"'Kaalulangetamise jälgimine'!C74","v":0}]
[{"$f":"IF(('Kaalulangetamise jälgimine'!C75=0)*('Kaalulangetamise jälgimine'!C74=0),TRUE)","v":true},{"$f":"IF(A54,0,IF('Kaalulangetamise jälgimine'!B75=0,'Kaalulangetamise jälgimine'!B74+5,'Kaalulangetamise jälgimine'!B75))","v":"00:00:00"},{"$f":"'Kaalulangetamise jälgimine'!C75","v":0}]
[{"$f":"IF(('Kaalulangetamise jälgimine'!C76=0)*('Kaalulangetamise jälgimine'!C75=0),TRUE)","v":true},{"$f":"IF(A55,0,IF('Kaalulangetamise jälgimine'!B76=0,'Kaalulangetamise jälgimine'!B75+5,'Kaalulangetamise jälgimine'!B76))","v":"00:00:00"},{"$f":"'Kaalulangetamise jälgimine'!C76","v":0}]
[{"$f":"IF(('Kaalulangetamise jälgimine'!C77=0)*('Kaalulangetamise jälgimine'!C76=0),TRUE)","v":true},{"$f":"IF(A56,0,IF('Kaalulangetamise jälgimine'!B77=0,'Kaalulangetamise jälgimine'!B76+5,'Kaalulangetamise jälgimine'!B77))","v":"00:00:00"},{"$f":"'Kaalulangetamise jälgimine'!C77","v":0}]
[{"$f":"IF(('Kaalulangetamise jälgimine'!C78=0)*('Kaalulangetamise jälgimine'!C77=0),TRUE)","v":true},{"$f":"IF(A57,0,IF('Kaalulangetamise jälgimine'!B78=0,'Kaalulangetamise jälgimine'!B77+5,'Kaalulangetamise jälgimine'!B78))","v":"00:00:00"},{"$f":"'Kaalulangetamise jälgimine'!C78","v":0}]
[{"$f":"IF(('Kaalulangetamise jälgimine'!C79=0)*('Kaalulangetamise jälgimine'!C78=0),TRUE)","v":true},{"$f":"IF(A58,0,IF('Kaalulangetamise jälgimine'!B79=0,'Kaalulangetamise jälgimine'!B78+5,'Kaalulangetamise jälgimine'!B79))","v":"00:00:00"},{"$f":"'Kaalulangetamise jälgimine'!C79","v":0}]
[{"$f":"IF(('Kaalulangetamise jälgimine'!C80=0)*('Kaalulangetamise jälgimine'!C79=0),TRUE)","v":true},{"$f":"IF(A59,0,IF('Kaalulangetamise jälgimine'!B80=0,'Kaalulangetamise jälgimine'!B79+5,'Kaalulangetamise jälgimine'!B80))","v":"00:00:00"},{"$f":"'Kaalulangetamise jälgimine'!C80","v":0}]
[{"$f":"IF(('Kaalulangetamise jälgimine'!C81=0)*('Kaalulangetamise jälgimine'!C80=0),TRUE)","v":true},{"$f":"IF(A60,0,IF('Kaalulangetamise jälgimine'!B81=0,'Kaalulangetamise jälgimine'!B80+5,'Kaalulangetamise jälgimine'!B81))","v":"00:00:00"},{"$f":"'Kaalulangetamise jälgimine'!C81","v":0}]
[{"$f":"IF(('Kaalulangetamise jälgimine'!C82=0)*('Kaalulangetamise jälgimine'!C81=0),TRUE)","v":true},{"$f":"IF(A61,0,IF('Kaalulangetamise jälgimine'!B82=0,'Kaalulangetamise jälgimine'!B81+5,'Kaalulangetamise jälgimine'!B82))","v":"00:00:00"},{"$f":"'Kaalulangetamise jälgimine'!C82","v":0}]
[{"$f":"IF(('Kaalulangetamise jälgimine'!C83=0)*('Kaalulangetamise jälgimine'!C82=0),TRUE)","v":true},{"$f":"IF(A62,0,IF('Kaalulangetamise jälgimine'!B83=0,'Kaalulangetamise jälgimine'!B82+5,'Kaalulangetamise jälgimine'!B83))","v":"00:00:00"},{"$f":"'Kaalulangetamise jälgimine'!C83","v":0}]
[{"$f":"IF(('Kaalulangetamise jälgimine'!C84=0)*('Kaalulangetamise jälgimine'!C83=0),TRUE)","v":true},{"$f":"IF(A63,0,IF('Kaalulangetamise jälgimine'!B84=0,'Kaalulangetamise jälgimine'!B83+5,'Kaalulangetamise jälgimine'!B84))","v":"00:00:00"},{"$f":"'Kaalulangetamise jälgimine'!C84","v":0}]
[{"$f":"IF(('Kaalulangetamise jälgimine'!C85=0)*('Kaalulangetamise jälgimine'!C84=0),TRUE)","v":true},{"$f":"IF(A64,0,IF('Kaalulangetamise jälgimine'!B85=0,'Kaalulangetamise jälgimine'!B84+5,'Kaalulangetamise jälgimine'!B85))","v":"00:00:00"},{"$f":"'Kaalulangetamise jälgimine'!C85","v":0}]
[{"$f":"IF(('Kaalulangetamise jälgimine'!C86=0)*('Kaalulangetamise jälgimine'!C85=0),TRUE)","v":true},{"$f":"IF(A65,0,IF('Kaalulangetamise jälgimine'!B86=0,'Kaalulangetamise jälgimine'!B85+5,'Kaalulangetamise jälgimine'!B86))","v":"00:00:00"},{"$f":"'Kaalulangetamise jälgimine'!C86","v":0}]
[{"$f":"IF(('Kaalulangetamise jälgimine'!C87=0)*('Kaalulangetamise jälgimine'!C86=0),TRUE)","v":true},{"$f":"IF(A66,0,IF('Kaalulangetamise jälgimine'!B87=0,'Kaalulangetamise jälgimine'!B86+5,'Kaalulangetamise jälgimine'!B87))","v":"00:00:00"},{"$f":"'Kaalulangetamise jälgimine'!C87","v":0}]
[{"$f":"IF(('Kaalulangetamise jälgimine'!C88=0)*('Kaalulangetamise jälgimine'!C87=0),TRUE)","v":true},{"$f":"IF(A67,0,IF('Kaalulangetamise jälgimine'!B88=0,'Kaalulangetamise jälgimine'!B87+5,'Kaalulangetamise jälgimine'!B88))","v":"00:00:00"},{"$f":"'Kaalulangetamise jälgimine'!C88","v":0}]
[{"$f":"IF(('Kaalulangetamise jälgimine'!C89=0)*('Kaalulangetamise jälgimine'!C88=0),TRUE)","v":true},{"$f":"IF(A68,0,IF('Kaalulangetamise jälgimine'!B89=0,'Kaalulangetamise jälgimine'!B88+5,'Kaalulangetamise jälgimine'!B89))","v":"00:00:00"},{"$f":"'Kaalulangetamise jälgimine'!C89","v":0}]
[{"$f":"IF(('Kaalulangetamise jälgimine'!C90=0)*('Kaalulangetamise jälgimine'!C89=0),TRUE)","v":true},{"$f":"IF(A69,0,IF('Kaalulangetamise jälgimine'!B90=0,'Kaalulangetamise jälgimine'!B89+5,'Kaalulangetamise jälgimine'!B90))","v":"00:00:00"},{"$f":"'Kaalulangetamise jälgimine'!C90","v":0}]
[{"$f":"IF(('Kaalulangetamise jälgimine'!C91=0)*('Kaalulangetamise jälgimine'!C90=0),TRUE)","v":true},{"$f":"IF(A70,0,IF('Kaalulangetamise jälgimine'!B91=0,'Kaalulangetamise jälgimine'!B90+5,'Kaalulangetamise jälgimine'!B91))","v":"00:00:00"},{"$f":"'Kaalulangetamise jälgimine'!C91","v":0}]
[{"$f":"IF(('Kaalulangetamise jälgimine'!C92=0)*('Kaalulangetamise jälgimine'!C91=0),TRUE)","v":true},{"$f":"IF(A71,0,IF('Kaalulangetamise jälgimine'!B92=0,'Kaalulangetamise jälgimine'!B91+5,'Kaalulangetamise jälgimine'!B92))","v":"00:00:00"},{"$f":"'Kaalulangetamise jälgimine'!C92","v":0}]
[{"$f":"IF(('Kaalulangetamise jälgimine'!C93=0)*('Kaalulangetamise jälgimine'!C92=0),TRUE)","v":true},{"$f":"IF(A72,0,IF('Kaalulangetamise jälgimine'!B93=0,'Kaalulangetamise jälgimine'!B92+5,'Kaalulangetamise jälgimine'!B93))","v":"00:00:00"},{"$f":"'Kaalulangetamise jälgimine'!C93","v":0}]
[{"$f":"IF(('Kaalulangetamise jälgimine'!C94=0)*('Kaalulangetamise jälgimine'!C93=0),TRUE)","v":true},{"$f":"IF(A73,0,IF('Kaalulangetamise jälgimine'!B94=0,'Kaalulangetamise jälgimine'!B93+5,'Kaalulangetamise jälgimine'!B94))","v":"00:00:00"},{"$f":"'Kaalulangetamise jälgimine'!C94","v":0}]
[{"$f":"IF(('Kaalulangetamise jälgimine'!C95=0)*('Kaalulangetamise jälgimine'!C94=0),TRUE)","v":true},{"$f":"IF(A74,0,IF('Kaalulangetamise jälgimine'!B95=0,'Kaalulangetamise jälgimine'!B94+5,'Kaalulangetamise jälgimine'!B95))","v":"00:00:00"},{"$f":"'Kaalulangetamise jälgimine'!C95","v":0}]
[{"$f":"IF(('Kaalulangetamise jälgimine'!C96=0)*('Kaalulangetamise jälgimine'!C95=0),TRUE)","v":true},{"$f":"IF(A75,0,IF('Kaalulangetamise jälgimine'!B96=0,'Kaalulangetamise jälgimine'!B95+5,'Kaalulangetamise jälgimine'!B96))","v":"00:00:00"},{"$f":"'Kaalulangetamise jälgimine'!C96","v":0}]
[{"$f":"IF(('Kaalulangetamise jälgimine'!C97=0)*('Kaalulangetamise jälgimine'!C96=0),TRUE)","v":true},{"$f":"IF(A76,0,IF('Kaalulangetamise jälgimine'!B97=0,'Kaalulangetamise jälgimine'!B96+5,'Kaalulangetamise jälgimine'!B97))","v":"00:00:00"},{"$f":"'Kaalulangetamise jälgimine'!C97","v":0}]
[{"$f":"IF(('Kaalulangetamise jälgimine'!C98=0)*('Kaalulangetamise jälgimine'!C97=0),TRUE)","v":true},{"$f":"IF(A77,0,IF('Kaalulangetamise jälgimine'!B98=0,'Kaalulangetamise jälgimine'!B97+5,'Kaalulangetamise jälgimine'!B98))","v":"00:00:00"},{"$f":"'Kaalulangetamise jälgimine'!C98","v":0}]
[{"$f":"IF(('Kaalulangetamise jälgimine'!C99=0)*('Kaalulangetamise jälgimine'!C98=0),TRUE)","v":true},{"$f":"IF(A78,0,IF('Kaalulangetamise jälgimine'!B99=0,'Kaalulangetamise jälgimine'!B98+5,'Kaalulangetamise jälgimine'!B99))","v":"00:00:00"},{"$f":"'Kaalulangetamise jälgimine'!C99","v":0}]
[{"$f":"IF(('Kaalulangetamise jälgimine'!C100=0)*('Kaalulangetamise jälgimine'!C99=0),TRUE)","v":true},{"$f":"IF(A79,0,IF('Kaalulangetamise jälgimine'!B100=0,'Kaalulangetamise jälgimine'!B99+5,'Kaalulangetamise jälgimine'!B100))","v":"00:00:00"},{"$f":"'Kaalulangetamise jälgimine'!C100","v":0}]
[{"$f":"IF(('Kaalulangetamise jälgimine'!C101=0)*('Kaalulangetamise jälgimine'!C100=0),TRUE)","v":true},{"$f":"IF(A80,0,IF('Kaalulangetamise jälgimine'!B101=0,'Kaalulangetamise jälgimine'!B100+5,'Kaalulangetamise jälgimine'!B101))","v":"00:00:00"},{"$f":"'Kaalulangetamise jälgimine'!C101","v":0}]
[{"$f":"IF(('Kaalulangetamise jälgimine'!C102=0)*('Kaalulangetamise jälgimine'!C101=0),TRUE)","v":true},{"$f":"IF(A81,0,IF('Kaalulangetamise jälgimine'!B102=0,'Kaalulangetamise jälgimine'!B101+5,'Kaalulangetamise jälgimine'!B102))","v":"00:00:00"},{"$f":"'Kaalulangetamise jälgimine'!C102","v":0}]
[{"$f":"IF(('Kaalulangetamise jälgimine'!C103=0)*('Kaalulangetamise jälgimine'!C102=0),TRUE)","v":true},{"$f":"IF(A82,0,IF('Kaalulangetamise jälgimine'!B103=0,'Kaalulangetamise jälgimine'!B102+5,'Kaalulangetamise jälgimine'!B103))","v":"00:00:00"},{"$f":"'Kaalulangetamise jälgimine'!C103","v":0}]
[{"$f":"IF(('Kaalulangetamise jälgimine'!C104=0)*('Kaalulangetamise jälgimine'!C103=0),TRUE)","v":true},{"$f":"IF(A83,0,IF('Kaalulangetamise jälgimine'!B104=0,'Kaalulangetamise jälgimine'!B103+5,'Kaalulangetamise jälgimine'!B104))","v":"00:00:00"},{"$f":"'Kaalulangetamise jälgimine'!C104","v":0}]
[{"$f":"IF(('Kaalulangetamise jälgimine'!C105=0)*('Kaalulangetamise jälgimine'!C104=0),TRUE)","v":true},{"$f":"IF(A84,0,IF('Kaalulangetamise jälgimine'!B105=0,'Kaalulangetamise jälgimine'!B104+5,'Kaalulangetamise jälgimine'!B105))","v":"00:00:00"},{"$f":"'Kaalulangetamise jälgimine'!C105","v":0}]
[{"$f":"IF(('Kaalulangetamise jälgimine'!C106=0)*('Kaalulangetamise jälgimine'!C105=0),TRUE)","v":true},{"$f":"IF(A85,0,IF('Kaalulangetamise jälgimine'!B106=0,'Kaalulangetamise jälgimine'!B105+5,'Kaalulangetamise jälgimine'!B106))","v":"00:00:00"},{"$f":"'Kaalulangetamise jälgimine'!C106","v":0}]
[{"$f":"IF(('Kaalulangetamise jälgimine'!C107=0)*('Kaalulangetamise jälgimine'!C106=0),TRUE)","v":true},{"$f":"IF(A86,0,IF('Kaalulangetamise jälgimine'!B107=0,'Kaalulangetamise jälgimine'!B106+5,'Kaalulangetamise jälgimine'!B107))","v":"00:00:00"},{"$f":"'Kaalulangetamise jälgimine'!C107","v":0}]
[{"$f":"IF(('Kaalulangetamise jälgimine'!C108=0)*('Kaalulangetamise jälgimine'!C107=0),TRUE)","v":true},{"$f":"IF(A87,0,IF('Kaalulangetamise jälgimine'!B108=0,'Kaalulangetamise jälgimine'!B107+5,'Kaalulangetamise jälgimine'!B108))","v":"00:00:00"},{"$f":"'Kaalulangetamise jälgimine'!C108","v":0}]
[{"$f":"IF(('Kaalulangetamise jälgimine'!C109=0)*('Kaalulangetamise jälgimine'!C108=0),TRUE)","v":true},{"$f":"IF(A88,0,IF('Kaalulangetamise jälgimine'!B109=0,'Kaalulangetamise jälgimine'!B108+5,'Kaalulangetamise jälgimine'!B109))","v":"00:00:00"},{"$f":"'Kaalulangetamise jälgimine'!C109","v":0}]
[{"$f":"IF(('Kaalulangetamise jälgimine'!C110=0)*('Kaalulangetamise jälgimine'!C109=0),TRUE)","v":true},{"$f":"IF(A89,0,IF('Kaalulangetamise jälgimine'!B110=0,'Kaalulangetamise jälgimine'!B109+5,'Kaalulangetamise jälgimine'!B110))","v":"00:00:00"},{"$f":"'Kaalulangetamise jälgimine'!C110","v":0}]
[{"$f":"IF(('Kaalulangetamise jälgimine'!C111=0)*('Kaalulangetamise jälgimine'!C110=0),TRUE)","v":true},{"$f":"IF(A90,0,IF('Kaalulangetamise jälgimine'!B111=0,'Kaalulangetamise jälgimine'!B110+5,'Kaalulangetamise jälgimine'!B111))","v":"00:00:00"},{"$f":"'Kaalulangetamise jälgimine'!C111","v":0}]
[{"$f":"IF(('Kaalulangetamise jälgimine'!C112=0)*('Kaalulangetamise jälgimine'!C111=0),TRUE)","v":true},{"$f":"IF(A91,0,IF('Kaalulangetamise jälgimine'!B112=0,'Kaalulangetamise jälgimine'!B111+5,'Kaalulangetamise jälgimine'!B112))","v":"00:00:00"},{"$f":"'Kaalulangetamise jälgimine'!C112","v":0}]
[{"$f":"IF(('Kaalulangetamise jälgimine'!C113=0)*('Kaalulangetamise jälgimine'!C112=0),TRUE)","v":true},{"$f":"IF(A92,0,IF('Kaalulangetamise jälgimine'!B113=0,'Kaalulangetamise jälgimine'!B112+5,'Kaalulangetamise jälgimine'!B113))","v":"00:00:00"},{"$f":"'Kaalulangetamise jälgimine'!C113","v":0}]
[{"$f":"IF(('Kaalulangetamise jälgimine'!C114=0)*('Kaalulangetamise jälgimine'!C113=0),TRUE)","v":true},{"$f":"IF(A93,0,IF('Kaalulangetamise jälgimine'!B114=0,'Kaalulangetamise jälgimine'!B113+5,'Kaalulangetamise jälgimine'!B114))","v":"00:00:00"},{"$f":"'Kaalulangetamise jälgimine'!C114","v":0}]
[{"$f":"IF(('Kaalulangetamise jälgimine'!C115=0)*('Kaalulangetamise jälgimine'!C114=0),TRUE)","v":true},{"$f":"IF(A94,0,IF('Kaalulangetamise jälgimine'!B115=0,'Kaalulangetamise jälgimine'!B114+5,'Kaalulangetamise jälgimine'!B115))","v":"00:00:00"},{"$f":"'Kaalulangetamise jälgimine'!C115","v":0}]
[{"$f":"IF(('Kaalulangetamise jälgimine'!C116=0)*('Kaalulangetamise jälgimine'!C115=0),TRUE)","v":true},{"$f":"IF(A95,0,IF('Kaalulangetamise jälgimine'!B116=0,'Kaalulangetamise jälgimine'!B115+5,'Kaalulangetamise jälgimine'!B116))","v":"00:00:00"},{"$f":"'Kaalulangetamise jälgimine'!C116","v":0}]
[{"$f":"IF(('Kaalulangetamise jälgimine'!C117=0)*('Kaalulangetamise jälgimine'!C116=0),TRUE)","v":true},{"$f":"IF(A96,0,IF('Kaalulangetamise jälgimine'!B117=0,'Kaalulangetamise jälgimine'!B116+5,'Kaalulangetamise jälgimine'!B117))","v":"00:00:00"},{"$f":"'Kaalulangetamise jälgimine'!C117","v":0}]
[{"$f":"IF(('Kaalulangetamise jälgimine'!C118=0)*('Kaalulangetamise jälgimine'!C117=0),TRUE)","v":true},{"$f":"IF(A97,0,IF('Kaalulangetamise jälgimine'!B118=0,'Kaalulangetamise jälgimine'!B117+5,'Kaalulangetamise jälgimine'!B118))","v":"00:00:00"},{"$f":"'Kaalulangetamise jälgimine'!C118","v":0}]
[{"$f":"IF(('Kaalulangetamise jälgimine'!C119=0)*('Kaalulangetamise jälgimine'!C118=0),TRUE)","v":true},{"$f":"IF(A98,0,IF('Kaalulangetamise jälgimine'!B119=0,'Kaalulangetamise jälgimine'!B118+5,'Kaalulangetamise jälgimine'!B119))","v":"00:00:00"},{"$f":"'Kaalulangetamise jälgimine'!C119","v":0}]
[{"$f":"IF(('Kaalulangetamise jälgimine'!C120=0)*('Kaalulangetamise jälgimine'!C119=0),TRUE)","v":true},{"$f":"IF(A99,0,IF('Kaalulangetamise jälgimine'!B120=0,'Kaalulangetamise jälgimine'!B119+5,'Kaalulangetamise jälgimine'!B120))","v":"00:00:00"},{"$f":"'Kaalulangetamise jälgimine'!C120","v":0}]
[{"$f":"IF(('Kaalulangetamise jälgimine'!C121=0)*('Kaalulangetamise jälgimine'!C120=0),TRUE)","v":true},{"$f":"IF(A100,0,IF('Kaalulangetamise jälgimine'!B121=0,'Kaalulangetamise jälgimine'!B120+5,'Kaalulangetamise jälgimine'!B121))","v":"00:00:00"},{"$f":"'Kaalulangetamise jälgimine'!C121","v":0}]
[{"$f":"IF(('Kaalulangetamise jälgimine'!C122=0)*('Kaalulangetamise jälgimine'!C121=0),TRUE)","v":true},{"$f":"IF(A101,0,IF('Kaalulangetamise jälgimine'!B122=0,'Kaalulangetamise jälgimine'!B121+5,'Kaalulangetamise jälgimine'!B122))","v":"00:00:00"},{"$f":"'Kaalulangetamise jälgimine'!C122","v":0}]
[{"$f":"IF(('Kaalulangetamise jälgimine'!C123=0)*('Kaalulangetamise jälgimine'!C122=0),TRUE)","v":true},{"$f":"IF(A102,0,IF('Kaalulangetamise jälgimine'!B123=0,'Kaalulangetamise jälgimine'!B122+5,'Kaalulangetamise jälgimine'!B123))","v":"00:00:00"},{"$f":"'Kaalulangetamise jälgimine'!C123","v":0}]
[{"$f":"IF(('Kaalulangetamise jälgimine'!C124=0)*('Kaalulangetamise jälgimine'!C123=0),TRUE)","v":true},{"$f":"IF(A103,0,IF('Kaalulangetamise jälgimine'!B124=0,'Kaalulangetamise jälgimine'!B123+5,'Kaalulangetamise jälgimine'!B124))","v":"00:00:00"},{"$f":"'Kaalulangetamise jälgimine'!C124","v":0}]
[{"$f":"IF(('Kaalulangetamise jälgimine'!C125=0)*('Kaalulangetamise jälgimine'!C124=0),TRUE)","v":true},{"$f":"IF(A104,0,IF('Kaalulangetamise jälgimine'!B125=0,'Kaalulangetamise jälgimine'!B124+5,'Kaalulangetamise jälgimine'!B125))","v":"00:00:00"},{"$f":"'Kaalulangetamise jälgimine'!C125","v":0}]
[{"$f":"IF(('Kaalulangetamise jälgimine'!C126=0)*('Kaalulangetamise jälgimine'!C125=0),TRUE)","v":true},{"$f":"IF(A105,0,IF('Kaalulangetamise jälgimine'!B126=0,'Kaalulangetamise jälgimine'!B125+5,'Kaalulangetamise jälgimine'!B126))","v":"00:00:00"},{"$f":"'Kaalulangetamise jälgimine'!C126","v":0}]
[{"$f":"IF(('Kaalulangetamise jälgimine'!C127=0)*('Kaalulangetamise jälgimine'!C126=0),TRUE)","v":true},{"$f":"IF(A106,0,IF('Kaalulangetamise jälgimine'!B127=0,'Kaalulangetamise jälgimine'!B126+5,'Kaalulangetamise jälgimine'!B127))","v":"00:00:00"},{"$f":"'Kaalulangetamise jälgimine'!C127","v":0}]
[{"$f":"IF(('Kaalulangetamise jälgimine'!C128=0)*('Kaalulangetamise jälgimine'!C127=0),TRUE)","v":true},{"$f":"IF(A107,0,IF('Kaalulangetamise jälgimine'!B128=0,'Kaalulangetamise jälgimine'!B127+5,'Kaalulangetamise jälgimine'!B128))","v":"00:00:00"},{"$f":"'Kaalulangetamise jälgimine'!C128","v":0}]
[{"$f":"IF(('Kaalulangetamise jälgimine'!C129=0)*('Kaalulangetamise jälgimine'!C128=0),TRUE)","v":true},{"$f":"IF(A108,0,IF('Kaalulangetamise jälgimine'!B129=0,'Kaalulangetamise jälgimine'!B128+5,'Kaalulangetamise jälgimine'!B129))","v":"00:00:00"},{"$f":"'Kaalulangetamise jälgimine'!C129","v":0}]